Cogmind - Beta 14 @@@ ROGUE MODE // 2024.10.05 @ 14:24:57 Player: Jay Result: Destroyed by G-34 Mercenary with Small Laser Performance ------------- Evolutions (0) 0 Regions Visited (4) 800 Robots Destroyed (21) 105 Value Destroyed (440) 440 Prototype IDs (1) 20 Alien Tech Used (0) 0 Bonus (0) 0 TOTAL SCORE: 1365 Bonus ------- None Cogmind --------- Core Integrity 0/250 Matter 300/300 Energy 33/100 System Corruption 0% Temperature Warm (143) Movement Core (50) Location -9/Mines Parts ------- > --- POWER (1) -------- (None) > --- PROPULSION (2) --- (None) > --- UTILITY (2) ------ Structural Scanner > --- WEAPON (2) ------- (None) > --- INVENTORY (5) ---- Heavy Ion Engine Propulsion Shielding EM Pulse Gun EM Pulse Gun Heavy EM Pulse Gun Peak State ------------ > --- POWER ------------ Heavy Ion Engine > --- PROPULSION ------- Aluminum Leg Aluminum Leg > --- UTILITY ---------- Small Storage Unit Seismic Detector > --- WEAPON ----------- Heavy EM Pulse Gun Heavy EM Pulse Gun > --- INVENTORY -------- EM Pulse Gun EM Pulse Gun Heavy EM Pulse Gun Heavy EM Pulse Gun [Rating: 11] Favorites ----------- Power Heavy Ion Engine Engine Heavy Ion Engine Power Core Light Nuclear Core Propulsion Aluminum Leg Leg Aluminum Leg Utility Seismic Detector Device Seismic Detector Storage Small Storage Unit Processor Targeting Computer Weapon Beam Cannon Energy Gun EM Pulse Gun Energy Cannon Beam Cannon Special Weapon Plasma Flamer Build | -11 -10 -10 -10 -9 ------- Run | Yrd Mat Min Exi Min Slots Evolved . | . . . . . Power . | . . . . . Propulsion . | . . . . . Utility . | . . . . . Weapon . | . . . . . Parts Attached 21 | 7 13 . . 1 Power 5 | 1 4 . . . Engine 4 | 1 3 . . . Core 1 | . 1 . . . Reactor . | . . . . . Propulsion 2 | 2 . . . . Treads . | . . . . . Leg 2 | 2 . . . . Wheel . | . . . . . Hover . | . . . . . Flight . | . . . . . Utility 4 | 2 2 . . . Device 2 | 1 1 . . . Storage 1 | 1 . . . . Processor 1 | . 1 . . . Hackware . | . . . . . Protection . | . . . . . Artifact . | . . . . . Weapon 10 | 2 7 . . 1 Energy Gun 7 | 2 5 . . . Energy Cannon 2 | . 2 . . . Ballistic Gun . | . . . . . Ballistic Cannon . | . . . . . Launcher . | . . . . . Special Weapon 1 | . . . . 1 Impact Weapon . | . . . . . Slashing Weapon . | . . . . . Piercing Weapon . | . . . . . Special Melee Weapon . | . . . . . Unidentified Prototypes 1 | . 1 . . . Parts Lost 7 | . 1 . . 6 Power 1 | . . . . 1 Propulsion 2 | . . . . 2 Utility 2 | . 1 . . 1 Weapon 2 | . . . . 2 Highest Loss Streak 3 | . 1 . . 3 To Critical Strikes . | . . . . . Average Slot Usage (%) 97 | . 99 100 100 77 Engine 13 | . 14 14 14 10 Leg 26 | . 28 28 28 17 Device 25 | . 18 28 28 28 Storage 1 | . 5 . . . Processor 1 | . 3 . . . Energy Gun 7 | . 26 . . . Energy Cannon 19 | . 1 28 28 18 Peak Build Rating 11 | 7 11 9 9 9 Average Rating 8 | 5 9 9 9 7 On Entrance 6 | . 7 9 9 9 Naked Turns . | . . . . . Heaviest Build 20 | 13 20 16 16 16 Greatest Support 20 | 20 20 20 20 20 Greatest Overweight (x) 3 | . . . . 3 Average Overweight (x) . | . . . . . Largest Inventory Capacity 8 | 8 8 5 5 5 Average Capacity 5 | 7 6 5 5 5 Most Carried 5 | . 5 5 5 5 Average Carried 4 | . 3 5 5 5 Final Capacity 8 | 8 5 5 5 5 Final Carried 5 | . 5 5 5 5 Class Distribution -------------------- 100% | Mutant Dominant Class ---------------- Mutant | -10/Materials Mutant | -10/Mines Mutant | -10/Exiles Mutant | -9/Mines Resources | -11 -10 -10 -10 -9 ----------- Run | Yrd Mat Min Exi Min Matter Collected 392 | 270 95 27 . . Remotely . | . . . . . Salvage Created 875 | 231 517 . . 127 Parts 57 | 18 33 . . 6 Haulers Intercepted 2 | . 2 . . . Recyclers Shooed 1 | . 1 . . . Parts Field Recycled . | . . . . . Retrieved Matter . | . . . . . Parts Self-Destructed . | . . . . . Prevented . | . . . . . Kills | -11 -10 -10 -10 -9 ------- Run | Yrd Mat Min Exi Min Combat Hostiles Destroyed 8 | . 5 . . 3 Guns 4 | . 4 . . . Cannons 2 | . . . . 2 AOE 2 | . 1 . . 1 Classes Destroyed 9 | 3 4 . . 2 Worker 3 | 2 1 . . . Builder 1 | . 1 . . . Tunneler 3 | 3 . . . . Hauler 2 | . 2 . . . Recycler 3 | 1 2 . . . Watcher 1 | . 1 . . . Grunt 6 | . 5 . . 1 Brawler 1 | . . . . 1 Duelist 1 | . . . . 1 Best Kill Streak 5 | 5 3 . . 1 Combat Bots Only 2 | . 2 . . 1 Max Kills in Single Turn 2 | 1 2 . . 1 Gunslinging . | . . . . . Exploded 1 | . 1 . . 1 Melee . | . . . . . Uniques/NPCs Destroyed . | . . . . . Combat | -11 -10 -10 -10 -9 -------- Run | Yrd Mat Min Exi Min Hostile Shots Fired 67 | . 19 . . 48 Missed 16 | . 8 . . 8 Damage Taken 892 | . 140 . . 752 Core 255 | . 14 . . 241 Absorbed by Shields . | . . . . . Core Remaining (%) 100 | 100 . . . . Volleys Fired 66 | 19 33 . . 14 Largest 2 | 2 2 . . 2 Hottest 120 | 80 110 . . 120 Shots Fired 127 | 38 64 . . 25 Gun 102 | 38 64 . . . Cannon 22 | . . . . 22 Launcher . | . . . . . Special 3 | . . . . 3 Kinetic . | . . . . . Thermal 30 | . 5 . . 25 Explosive . | . . . . . Electromagnetic 97 | 38 59 . . . Robot Hit Streak 6 | 4 6 . . 4 Robot Miss Streak 5 | 3 5 . . 3 Penetration Max . | . . . . . Secondary Targets . | . . . . . Shots Hit Robots 63 | 23 26 . . 14 Core Hits 26 | 7 14 . . 5 Critical Kills . | . . . . . Critical Parts Destroyed . | . . . . . Critical Strikes . | . . . . . Melee Attacks . | . . . . . Impact . | . . . . . Slashing . | . . . . . Piercing . | . . . . . Sneak Attacks . | . . . . . Combat Hostiles . | . . . . . Follow-up Attacks . | . . . . . Damage Inflicted 1303 | 308 755 . . 240 Guns 764 | 267 497 . . . Cannons 194 | . . . . 194 Explosions 296 | 41 255 . . . Melee . | . . . . . Ramming 8 | . 3 . . 5 Kinetic . | . . . . . Thermal 565 | 41 289 . . 235 Explosive . | . . . . . Electromagnetic 730 | 267 463 . . . Impact . | . . . . . Slashing . | . . . . . Piercing . | . . . . . Highest Corruption . | . . . . . Average Corruption . | . . . . . Corruption Purged . | . . . . . Corruption Blocked . | . . . . . Overload Shots . | . . . . . Overflow Damage . | . . . . . Projectiles . | . . . . . Explosions . | . . . . . Melee . | . . . . . Knockbacks . | . . . . . Impact . | . . . . . Kinetic . | . . . . . Secondary . | . . . . . Self-Inflicted Damage . | . . . . . Shots . | . . . . . Rammed . | . . . . . Targets Rammed 2 | . 1 . . 1 Kicked 2 | . 1 . . 1 Crushed . | . . . . . Highest Temperature 208 | 108 208 . . 207 Average Temperature 59 | 37 66 . . 65 Received Heat Transfer 255 | . 99 . . 156 Siege Activations . | . . . . . Robots Corrupted . | . . . . . Combat Hostiles . | . . . . . Parts Fried 2 | 1 . . . 1 Impact Corruptions . | . . . . . Robots Melted . | . . . . . Combat Hostiles . | . . . . . Parts Melted . | . . . . . Heat Transferred 871 | . 224 . . 647 Parts Sabotaged . | . . . . . Parts Stolen . | . . . . . Parts Stripped . | . . . . . Power Chain Reactions 5 | 1 4 . . . Alert | -11 -10 -10 -10 -9 ------- Run | Yrd Mat Min Exi Min Peak Influence 189 | 30 189 73 . 95 Initial 73 | . 19 73 . . Average 69 | 11 85 73 . 54 Maximum Alert Level . | . . . . . Low Security (%) 100 | 100 100 100 . 100 Level 1 . | . . . . . Level 2 . | . . . . . Level 3 . | . . . . . Level 4 . | . . . . . Level 5 . | . . . . . High Security . | . . . . . Max Security . | . . . . . Squads Dispatched 1 | . 1 . . . Investigation . | . . . . . Extermination . | . . . . . Reinforcement 1 | . 1 . . . Assault . | . . . . . Garrison . | . . . . . Intercept . | . . . . . Searches Triggered . | . . . . . Construction Impeded . | . . . . . Haulers Reinforced . | . . . . . Active Scanning Responses . | . . . . . Cargo Convoy Interrupts . | . . . . . Stealth | -11 -10 -10 -10 -9 --------- Run | Yrd Mat Min Exi Min Distress Signals 1 | . 1 . . . Communications Jammed . | . . . . . Distress Signals . | . . . . . Times Spotted 21 | . 12 . . 9 Peak Tracking Total 5 | . 3 . . 5 Tactical Retreats 3 | . 1 . . 2 Traps | -11 -10 -10 -10 -9 ------- Run | Yrd Mat Min Exi Min Traps Triggered . | . . . . . Indirectly . | . . . . . Trap Hack Attempts . | . . . . . Triggered . | . . . . . Disarmed . | . . . . . Reprogrammed . | . . . . . Reused . | . . . . . Traps Extracted . | . . . . . Installed . | . . . . . Triggered 1 | . . . . 1 Machines | -11 -10 -10 -10 -9 ---------- Run | Yrd Mat Min Exi Min Machines Disabled 6 | . 6 . . . Max in Single Turn 1 | . 1 . . . Machines Repaired . | . . . . . Machines Dismantled . | . . . . . Machines Sabotaged . | . . . . . Overloaded Fab Kills . | . . . . . Hacking | -11 -10 -10 -10 -9 --------- Run | Yrd Mat Min Exi Min Machines Accessed 6 | . 2 . 4 . Terminals 2 | . 2 . . . Fabricators . | . . . . . Repair Stations . | . . . . . Recycling Units . | . . . . . Scanalyzers . | . . . . . Garrison Access . | . . . . . Total Hacks 53 | . 4 . 49 . Successful 50 | . 1 . 49 . Failed 3 | . 3 . . . Catastrophic . | . . . . . Database Lockouts . | . . . . . Manual . | . . . . . Terminals 4 | . 4 . . . Fabricators . | . . . . . Repair Stations . | . . . . . Recycling Units . | . . . . . Scanalyzers . | . . . . . Garrison Access . | . . . . . Terminal Hacks 50 | . 1 . 49 . Record 49 | . . . 49 . Branch Access Points 1 | . 1 . . . Fabricator Hacks . | . . . . . Repair Station Hacks . | . . . . . Recycling Unit Hacks . | . . . . . Scanalyzer . | . . . . . Garrison Access Hacks . | . . . . . Unauthorized Hacks . | . . . . . Terminals . | . . . . . Fabricators . | . . . . . Repair Stations . | . . . . . Recycling Units . | . . . . . Scanalyzers . | . . . . . Garrison Access . | . . . . . Data Cores Recovered . | . . . . . Used . | . . . . . Hacking Detections 1 | . 1 . . . Full Trace Events 1 | . 1 . . . Feedback Events . | . . . . . Feedback Blocked . | . . . . . Robot Schematics Acquired . | . . . . . Robots Built . | . . . . . Authchips . | . . . . . Time . | . . . . . Total Robot Build Rating . | . . . . . Part Schematics Acquired . | . . . . . Parts Built . | . . . . . Authchips . | . . . . . Time . | . . . . . Total Part Build Rating . | . . . . . Parts Repaired . | . . . . . Time . | . . . . . Parts Recycled . | . . . . . Recycled Matter . | . . . . . Retrieved Matter . | . . . . . Retrieved Components . | . . . . . Parts Scanalyzed . | . . . . . Part Schematics Acquired . | . . . . . Parts Damaged . | . . . . . Bothacking | -11 -10 -10 -10 -9 ------------ Run | Yrd Mat Min Exi Min Used RIF Installer . | . . . . . Robots Hacked . | . . . . . Non-combat . | . . . . . Combat . | . . . . . Robot Hacks Applied . | . . . . . Relay Couplers Released . | . . . . . Fabnet Peak Effective % . | . . . . . Robots Rewired . | . . . . . Allies Hacked . | . . . . . Hacks Repelled . | . . . . . Allies | -11 -10 -10 -10 -9 -------- Run | Yrd Mat Min Exi Min Total Allies . | . . . . . Largest Group . | . . . . . Highest-Rated Group . | . . . . . Highest-Rated Ally . | . . . . . Total Orders . | . . . . . Ally Attacks . | . . . . . Total Damage . | . . . . . Kills . | . . . . . Allies Corrupted . | . . . . . Allies Melted . | . . . . . Intel | -11 -10 -10 -10 -9 ------- Run | Yrd Mat Min Exi Min Robot Analysis Total . | . . . . . Derelict Logs Recovered . | . . . . . Drone Launches . | . . . . . Drone Recoveries . | . . . . . Exploration | -11 -10 -10 -10 -9 ------------- Run | Yrd Mat Min Exi Min Turns Passed 2855 | 178 785 357 1270 265 Spaces Moved 1997 | 97 447 197 1052 204 Core 94 | 8 . . . 86 Treads . | . . . . . Legs 1903 | 89 447 197 1052 118 Wheels . | . . . . . Hover . | . . . . . Flight . | . . . . . Fastest Speed 50 | 50 120 120 120 50 Average Speed 118 | 114 120 120 120 105 Slowest Speed 200 | 120 120 120 120 200 Overloaded Moves . | . . . . . Propulsion Burnouts . | . . . . . Robots Hopped . | . . . . . Cave-ins Triggered . | . . . . . Exploration Rate (%) 52 | 6 67 48 92 48 Regions Visited 4 Branch Regions 3 Pre-discovered Areas 1 | . . . 1 . Known Exits Taken 1 | . 1 . . . Unknown Exits Taken 3 | 1 . 1 1 . Scrap Searched . | . . . . . Spaces Dug . | . . . . . Terrain Destroyed 14 | 5 9 . . . Melee . | . . . . . Projectile . | . . . . . AOE 14 | 5 9 . . . Terrain Rammed . | . . . . . Walls Destroyed . | . . . . . Machines Disabled . | . . . . . Actions | -11 -10 -10 -10 -9 --------- Run | Yrd Mat Min Exi Min Total 2349 | 122 626 317 1059 225 Wait 255 | . 128 121 1 5 Move 1992 | 96 445 196 1051 204 Hop . | . . . . . Pick Up 4 | . 4 . . . Fast Attach 9 | 7 1 . . 1 Attach . | . . . . . Detach . | . . . . . Swap 12 | . 12 . . . Drop 2 | . 2 . . . Fire 66 | 19 33 . . 14 Melee . | . . . . . Ram . | . . . . . Kick 2 | . 1 . . 1 Crush . | . . . . . Escape Stasis . | . . . . . Rewire 7 | . . . 7 . Trap . | . . . . . Miscellaneous . | . . . . . Route ------- -11/Scrapyard -10/Materials (discovered 2 exits: [*Mat] / *Min) -10/Mines -10/Exiles (discovered 2 exits: [*Min x2]) -9/Mines (discovered 1 exit: [*Mat]) History --------- Turn | Location | Event 7 | -11/Scrapyard | Discovered new exit (range 16) 179 | -11/Scrapyard | Entered Materials 301 | -10/Materials | Build established: Mutant 744 | -10/Materials | Identified exit to Mines 842 | -10/Materials | Discovered new exit (range 4) 964 | -10/Materials | Entered Mines 968 | -10/Mines | Assembled infested the area 1315 | -10/Mines | Discovered new exit (range 5) 1321 | -10/Mines | Entered Exiles 1345 | -10/Exiles | Discovered new exit (range 15) 1366 | -10/Exiles | Met 8R-AWN 1387 | -10/Exiles | Met EX-HEX 1457 | -10/Exiles | Met EX-BIN 1601 | -10/Exiles | Met EX-DEC 1613 | -10/Exiles | Learned location of Zion (-7) 1661 | -10/Exiles | Visited The Gauntlet 2570 | -10/Exiles | Discovered new exit (range 14) 2591 | -10/Exiles | Entered Mines 2776 | -9/Mines | Received a Rocket Launcher from a helpful Derelict 2794 | -9/Mines | Core integrity fell below 50% 2815 | -9/Mines | Discovered new exit (range 5) 2824 | -9/Mines | Lost 3 parts (1p1n1w) 2826 | -9/Mines | A weapon hastily lodged in a ceiling crevice suddenly fell to the ground 2853 | -9/Mines | Core integrity fell below 20% 2856 | -9/Mines | Destroyed by G-34 Mercenary with Small Laser Last Messages --------------- the wall? Done." 02775_ 09-TZ8(g): "Need a small hole in the wall? Leave that to the mining laser wimps, I say!" 02776_ 09-TZ8(g): "Would you like a rocket launcher? I know I would if I were you, so I'm going to lend you mine." 02776_ 09-TZ8(g) slips back into the shadows. 02781_ Beam Cannon destroyed. 02784_ Aluminum Leg destroyed. 02793_ Hvy. Ion Engine destroyed. 02799_ K-01 Serf collects debris. 02815_ A derelict is hurriedly installing traps. 02815_ EXIT=FOUND 02817_ PG-J69(g): "Hehe, this'll put a wrench in their mining defense operations..." 02817_ PG-J69(g) slips into the shadows. 02826_ A Plasma Flamer has been hastily shoved under some rubble with a note attached: "One is never enough." 02827_ Acquired Plasma Flamer. 02854_ Plasma Flamer destroyed. 02854_ Seismic Detector destroyed. Map ----- +----------------------------------------------------+ | | | | | | | | | ???????????????????????????????????????????? | | ???????????????????????????????????????????? | | ???????????????????????????????????????????? | | ??????????????????????????????????????????## | | ?????????????????????????????????????????### | | ???????????????????????????????############# | | ???????????????????????????????############ | | ???????????????????????????????## # | | ???????????????????????????????## | | ???????????????????????????????## #### | | ??????????????????????????????### #### | | ?????????????????################ ##### | | ?????????????################### ######## | | ??????????######### #### < ####### | | ????????####### #### ##^^ ##???## | | ????????#### ^ # ##??### | | ????????## ^# # ^ ###??### | | ????????## #### # # ### ####??## | | ????????######### g ### ### ###???## | | ????????###### g ############ ##????### | | ???????????### l ############ ##????### | | ???????????### ###@ ###????????## ##?????## | | ???????????## ########?????????# ?? | | ???????????## #######??????????####??#### | | ???????????## ####???????????????####??##### | | ???????????## ####???????????????????????### | | ???????????## ##???????????????????????###?? | | ??????????? ???????????????????????## ?? | | ???????????? ?????????????????????## ## ?? | | ???????????? ?????????????????###### ## ?? | | ???????????? ?????????????????###### # ? | | ??????????? #??????????????? | | ??????????# ##????????????????? | | ??????????## ##???????????????????## | | ??????????## #???????????????????### | | ??????????# ????????????????????### | | ??????????? ???????????????????### | | ??????????? ??????????????????### ## | | ??????????? ?????????????????## ?### | | ??????????? ##??????????????? ??????# | | ?????????????? ##??????????????? ##????????? | | ????????????????????????????????###????????? | | ???????????????????????????????????????????? | | ???????????????????????????????????????????? | | ???????????????????????????????????????????? | | ???????????????????????????????????????????? | +----------------------------------------------------+ Best States ------------- Heat Dissipation 25 Energy Generation 14 Energy Capacity 280 Matter Stores 300 Matter Capacity 300 Sight Range 16 Terrain Scan Density 10 Evasion (%) 55 Targeting Accuracy 5 Item Schematics ----------------- None Robot Schematics ------------------ None Fabricated ------------ Nothing Alien Tech Used ----------------- None Achievements -------------- None Challenges ------------ None Game ------ Seed GammaComponentDiverter Manual? 0 Play Time 00:16:10 Cumulative 9.6 hours Start 2024.10.05 @ 14:06:26 End 2024.10.05 @ 14:24:57 Sessions 1 Manual Loads 0 Difficulty Rogue Special Mode None Game No. 34 Rogue 34 Adventurer 0 Explorer 0 Win Type - Total 0 Types 0/0/0/0/0/0/0/0/0 Lore% 8 Gallery% 16 Achievement% 15 Wizard Run 0 Options --------- Layout 0 ASCII 0 Keyboard 1 Movement Numpad Keybinds 0 Fullscreen 1 Font 18/CogWide Map View 76x50 Zoom Use 0% Tactical HUD 1 Map Filters NONE Filters NONE Steam 1 RUN: 8f812227-cd3f-4984-90aa-dceb16c75931